bitfinex-derivatives/quotes_SOLF0:USTF0_20251119
["timestamp","ask_amount","ask_price","bid_price","bid_amount"]
[1763584373673,3.13,132.41,132.37,9.9464]
[1763584373860,3.13,132.46,132.4,3.14]
[1763584374264,3.13,132.46,132.42,9.9441]
[1763584374465,0.0514253,132.44,132.42,9.99557212]
[1763584375171,0.0514253,132.44,132.42,0.05147212]
[1763584375666,3.1814253,132.44,132.42,0.05147212]
[1763584377675,0.0514253,132.44,132.42,0.05147212]
[1763584377970,0.0514253,132.44,132.42,3.19147212]
[1763584379175,4.44424903,132.5,132.42,3.19147212]
[1763584379368,4.44424903,132.5,132.42,3.14]
[1763584379569,11.24454903,132.5,132.44,6.8031]
[1763584379871,3.13,132.49,132.45,3.14]
[1763584380078,3.18336907,132.48,132.46,0.05709088]
[1763584381158,9.98466907,132.48,132.46,0.05709088]
[1763584381371,3.13,132.47,132.46,0.05709088]
[1763584382369,3.13,132.47,132.37,105.8775]
[1763584382370,3.13,132.44,132.37,3.14]
[1763584383064,9.9338,132.43,132.37,9.9467]
[1763584383264,3.13,132.43,132.37,9.9467]
[1763584383460,0.05513572,132.41,132.39,0.05788351]
[1763584384872,3.18513572,132.41,132.39,0.05788351]
[1763584385272,0.05513572,132.41,132.39,0.05788351]
[1763584385868,3.18513572,132.41,132.39,0.05788351]
[1763584386174,0.05513572,132.41,132.39,0.05788351]
[1763584390077,3.36513572,132.41,132.39,0.05788351]
[1763584390486,3.31,132.48,132.4,3.29]
[1763584390979,10.1112,132.48,132.42,6.8038]
[1763584391477,0.05419765,132.46,132.44,0.05584574]
[1763584391783,3.36419765,132.46,132.44,0.05584574]
[1763584395779,10.16639765,132.46,132.44,0.05584574]
[1763584396081,3.31,132.45,132.44,0.05584574]
[1763584397676,3.31,132.45,132.39,10.0956]
[1763584398881,3.3603949,132.43,132.41,0.05764422]
[1763584401177,0.0503949,132.43,132.41,3.34764422]
[1763584402080,0.0503949,132.43,132.41,0.05764422]
[1763584402284,0.0503949,132.43,132.41,3.34764422]
[1763584402471,0.0503949,132.43,132.41,0.05764422]
[1763584402676,0.0503949,132.43,132.42,3.29]
[1763584405076,0.0503949,132.43,132.41,0.05764422]
[1763584405278,0.0503949,132.43,132.41,3.34764422]
[1763584405585,0.0503949,132.43,132.42,3.36]
[1763584407389,0.0503949,132.43,132.42,10.1642]
[1763584407983,0.0503949,132.43,132.41,3.41764422]
[1763584408685,0.0503949,132.43,132.41,0.05764422]
[1763584408891,3.3303949,132.43,132.41,0.05764422]
[1763584409190,10.1341949,132.43,132.41,0.05764422]
[1763584409889,3.28,132.42,132.41,0.05764422]
[1763584411089,10.0846,132.42,132.35,19.26]
[1763584411290,3.28,132.41,132.35,19.26]
[1763584411483,3.28,132.41,132.36,3.36]
[1763584412091,0.05087488,132.4,132.37,3.40849469]
[1763584412291,0.05087488,132.4,132.39,3.36]
[1763584413379,6.15820039,132.45,132.41,10.1645]
[1763584413579,3.28,132.46,132.42,3.36]
[1763584413777,3.28,132.47,132.43,10.1636]
[1763584414383,0.0556962,132.46,132.44,0.04857275]
[1763584414989,0.0556962,132.46,132.44,6.85167275]
[1763584415192,0.0556962,132.46,132.44,10.21167275]
[1763584415886,7.02340357,132.54,132.47,3.36]
[1763584416091,3.28,132.55,132.47,3.36]
[1763584416291,1.31405052,132.53,132.47,3.36]
[1763584416486,3.28,132.55,132.49,3.36]
[1763584416788,0.05308757,132.53,132.52,3.36]
[1763584418597,3.06,132.61,132.54,6.798]
[1763584418801,4.37318277,132.61,132.54,9.928]
[1763584418999,1.31318277,132.61,132.54,3.13]
[1763584419292,1.31318277,132.61,132.51,19.03]
[1763584419293,9.8551,132.6,132.51,19.03]
[1763584419498,3.10967834,132.57,132.54,0.0530439]
[1763584420897,0.04967834,132.57,132.54,3.1830439]
[1763584421897,0.04967834,132.57,132.56,3.13]
[1763584422497,0.04967834,132.57,132.54,0.0530439]
[1763584422498,0.04967834,132.57,132.54,3.1830439]
[1763584422899,3.10967834,132.57,132.54,3.1830439]
[1763584423894,0.04967834,132.57,132.54,3.1830439]
[1763584425500,0.04967834,132.57,132.56,3.13]
[1763584428702,0.04967834,132.57,132.54,3.1830439]
[1763584429007,3.10967834,132.57,132.54,0.0530439]
[1763584432209,1.31286075,132.63,132.56,3.13]
[1763584432510,1.31286075,132.63,132.58,3.13]
[1763584432700,3.06,132.65,132.58,3.13]
[1763584432904,3.06,132.65,132.61,9.9243]
[1763584433405,3.10900405,132.64,132.62,0.05661572]
[1763584434705,3.06,132.63,132.62,0.05661572]
[1763584435811,3.10900405,132.64,132.62,0.05661572]
[1763584436209,0.04900405,132.64,132.62,0.05661572]
[1763584436714,0.04900405,132.64,132.62,9.98041572]
[1763584437304,0.04900405,132.64,132.63,3.13]
[1763584437811,3.06,132.71,132.63,3.13]
[1763584437812,1.31224194,132.7,132.65,6.7923]
[1763584438011,3.06,132.69,132.62,19.03]
[1763584438515,6.791,132.68,132.62,3.13]
[1763584438710,0.04916493,132.66,132.64,0.05056577]
[1763584439611,0.04916493,132.66,132.64,3.18056577]
[1763584441216,4.37206877,132.72,132.66,3.13]
[1763584442020,3.06,132.71,132.63,3.13]
[1763584442514,0.05397908,132.68,132.66,0.04766101]
[1763584443711,3.11397908,132.68,132.66,0.04766101]
[1763584443911,0.05397908,132.68,132.66,3.17766101]
[1763584444422,3.06,132.75,132.71,9.9191]
[1763584444619,1.31172258,132.77,132.71,3.13]
[1763584444819,3.06,132.79,132.73,3.13]
[1763584445427,0.02838292,132.77,132.75,9.97125703]
[1763584446111,0.02838292,132.77,132.75,3.18445703]
[1763584446920,0.02838292,132.77,132.75,0.05445703]
[1763584447426,0.02838292,132.77,132.75,3.18445703]
[1763584447610,3.06,132.86,132.77,108.6918]
[1763584447816,3.06,132.86,132.78,3.13]
[1763584448117,4.62083321,132.85,132.8,9.8945]
[1763584448422,4.62083321,132.85,132.8,3.11]
[1763584448720,3.31,132.84,132.81,0.05423169]
[1763584451110,3.31,132.82,132.81,0.05423169]
[1763584451419,3.31,132.8,132.71,3.11]
[1763584451623,3.31,132.8,132.72,9.8986]
[1763584451826,3.31,132.8,132.73,3.11]
[1763584452320,3.36216843,132.78,132.75,0.05629064]
[1763584452714,10.21157855,132.78,132.75,0.05629064]
[1763584452920,10.15941012,132.75,132.67,3.11]
[1763584453118,3.31,132.74,132.67,3.11]
[1763584453416,3.31,132.74,132.67,9.9012]
[1763584453623,3.31,132.74,132.67,3.11]
[1763584454135,0.05475838,132.72,132.69,6.84040234]
[1763584454424,0.05475838,132.72,132.69,0.05030234]
[1763584455420,3.36475838,132.72,132.69,0.05030234]
[1763584455620,3.36475838,132.72,132.63,3.11]
[1763584455826,3.31,132.72,132.63,3.11]
[1763584456126,10.0995,132.71,132.63,9.9032]
[1763584456321,3.31,132.7,132.59,105.7058]
[1763584456527,3.31,132.68,132.59,3.11]
[1763584456828,3.31,132.65,132.63,0.05331543]
[1763584458727,3.36166226,132.66,132.63,0.05331543]
[1763584460634,0.05166226,132.66,132.63,3.16331543]
[1763584460835,3.36166226,132.66,132.63,0.05331543]
[1763584463817,3.31,132.65,132.63,0.05331543]
[1763584465132,3.31,132.63,132.56,15.9]
[1763584465325,2.51375192,132.63,132.54,3.11]
[1763584465521,6.7941,132.62,132.55,6.7973]
[1763584465824,26.59260069,132.64,132.55,6.7973]
[1763584466022,0.05323651,132.61,132.58,3.19818723]
[1763584466226,0.05323651,132.61,132.59,3.15]
[1763584467327,0.05323651,132.61,132.59,9.9452]
[1763584468737,0.05323651,132.61,132.6,3.15]
[1763584469236,3.10323651,132.61,132.58,0.04818723]
[1763584470324,0.05323651,132.61,132.58,0.04818723]
[1763584470833,0.05323651,132.61,132.58,3.19818723]
[1763584471539,0.05323651,132.61,132.6,3.15]
[1763584472634,3.05,132.67,132.62,9.9439]
[1763584473236,3.05,132.7,132.63,3.15]
[1763584473442,3.05,132.7,132.64,3.15]
[1763584473636,0.05559194,132.68,132.66,0.05251913]
[1763584473939,6.96066806,132.9,132.79,2.95]
[1763584474139,3.05,132.93,132.85,2.95]
[1763584474542,3.05,132.93,132.84,105.5079]
[1763584474744,3.05,132.93,132.83,105.5147]
[1763584474944,0.05241334,132.89,132.87,0.05017755]
[1763584475650,3.10241334,132.89,132.87,0.05017755]
[1763584478247,0.05241334,132.89,132.87,0.05017755]
[1763584478845,0.05241334,132.89,132.87,108.47277755]
[1763584479052,3.2,132.93,132.89,105.4687]
[1763584479450,3.2,132.93,132.87,108.4244]
[1763584479952,0.04758954,132.91,132.89,0.05517775]
[1763584480452,3.38758954,132.91,132.89,0.05517775]
[1763584480653,0.04758954,132.91,132.89,0.05517775]
[1763584483254,3.38758954,132.91,132.89,0.05517775]
[1763584484957,3.38758954,132.91,132.85,6.7817]
[1763584485759,3.38758954,132.91,132.87,0.04941813]
[1763584486963,3.34,132.89,132.87,0.04941813]
[1763584487860,3.38758954,132.91,132.87,105.53331813]
[1763584489064,3.38758954,132.91,132.88,6.7803]
[1763584493664,3.38758954,132.91,132.89,6.7799]
[1763584494162,0.04758954,132.91,132.89,6.7799]
[1763584495562,3.38758954,132.91,132.89,6.7799]
[1763584495763,3.38758954,132.91,132.87,105.53171813]
[1763584495764,3.38758954,132.91,132.87,0.04941813]
[1763584496766,3.38758954,132.91,132.89,6.78]
[1763584496963,3.38758954,132.91,132.87,0.04941813]
[1763584497368,3.38758954,132.91,132.88,6.7804]
[1763584497557,0.04758954,132.91,132.88,3.0]
[1763584497957,0.04758954,132.91,132.89,6.78]
[1763584498558,3.38758954,132.91,132.87,0.04941813]
[1763584498760,3.38758954,132.91,132.87,3.04941813]
[1763584499768,3.38758954,132.91,132.88,6.7805]
[1763584500065,3.38758954,132.91,132.87,0.04941813]
[1763584500660,16.02,132.9,132.87,0.04941813]
[1763584500862,3.34,132.89,132.87,0.04941813]
[1763584501164,3.38758954,132.91,132.87,105.53141813]
[1763584501373,3.38758954,132.91,132.87,108.53141813]
[1763584501671,3.38758954,132.91,132.89,6.78]
[1763584502669,3.34,132.97,132.93,108.3857]
[1763584502862,4.64962461,132.99,132.95,2.95]
[1763584503060,3.34,132.99,132.95,2.95]
[1763584503471,3.34,132.99,132.96,0.04851529]
[1763584503659,0.05678067,132.98,132.96,0.04851529]
[1763584504364,0.05678067,132.98,132.96,9.77501529]
[1763584504763,3.39678067,132.98,132.96,0.04851529]
[1763584504961,3.39678067,132.98,132.9,10.69260069]
[1763584504962,3.39678067,132.98,132.9,105.4607]
[1763584505271,3.34,132.98,132.9,108.4607]
[1763584505474,3.34,132.98,132.93,6.778]
[1763584505972,3.34,132.96,132.94,0.05728706]
[1763584506178,3.34,132.96,132.94,6.82737052]
[1763584506468,3.34,132.96,132.94,0.04987052]
[1763584506671,0.05397744,132.97,132.95,6.777]
[1763584507065,0.05397744,132.97,132.96,3.0]
[1763584508361,3.32,133.02,132.94,0.04987052]
[1763584508561,3.32,133.02,132.93,105.4332]
[1763584508872,3.32,133.02,132.96,6.7763]
[1763584509563,3.32,132.99,132.98,0.05305997]
[1763584509969,3.32,132.98,132.89,105.469]
[1763584510273,3.32,132.98,132.92,6.7782]
[1763584510570,3.32,132.98,132.91,108.5025]
[1763584510870,3.32,132.98,132.94,6.7775]
[1763584511168,0.04797178,132.96,132.94,6.7775]
[1763584511369,0.04797178,132.96,132.95,3.05]
[1763584511567,16.02,132.99,132.96,9.8265]
[1763584511767,3.32,133.02,132.96,3.05]
[1763584511965,3.32,133.02,132.97,3.05]
[1763584512475,0.05057809,133.01,132.98,0.05389852]
[1763584512868,3.37057809,133.01,132.98,0.05389852]
[1763584513674,3.37057809,133.01,132.98,3.10389852]
[1763584513675,0.05057809,133.01,132.98,3.10389852]
[1763584514764,3.37057809,133.01,132.98,0.05389852]
[1763584515369,3.32,133.0,132.98,0.05389852]
[1763584517667,0.05057809,133.01,132.98,0.05389852]
[1763584517982,3.37057809,133.01,132.98,0.05389852]
[1763584520674,3.32,133.0,132.98,0.05389852]
[1763584521076,0.05057809,133.01,132.98,0.05389852]
[1763584521486,3.37057809,133.01,132.98,0.05389852]
[1763584523285,0.05057809,133.01,133.0,3.05]
[1763584524378,3.37057809,133.01,132.98,0.05389852]
[1763584525086,3.32,133.0,132.98,0.05389852]
[1763584528582,3.16,132.99,132.91,6.779]
[1763584528782,19.16,132.98,132.9,3.05]
[1763584529187,16.0,132.98,132.94,3.05]
[1763584529581,0.04897778,132.97,132.95,0.04764042]
[1763584531887,0.04897778,132.97,132.95,3.09764042]
[1763584533389,0.04897778,132.97,132.95,0.04764042]
[1763584533596,0.04897778,132.97,132.95,3.09764042]
[1763584534991,0.04897778,132.97,132.96,3.05]
[1763584535386,0.04897778,132.97,132.96,9.84223245]
[1763584535586,16.0,133.01,132.98,3.0]
[1763584536799,16.05269483,133.01,132.99,9.775]
[1763584537898,16.05269483,133.01,132.99,3.0]
[1763584538795,0.05269483,133.01,132.99,3.0]
[1763584538997,3.3,133.09,133.0,2.94]
[1763584539194,3.3,133.09,133.02,9.7135]
[1763584539501,3.3,133.08,133.02,9.7135]
[1763584540200,17.28841824,133.09,132.97,15.98]
[1763584540201,3.3,133.05,133.04,0.04786323]
[1763584540500,3.3,133.05,133.03,0.05527078]
[1763584540805,3.3,133.05,133.03,0.05160313]
[1763584542599,3.3,133.03,132.96,2.94]
[1763584542996,3.3,133.03,132.94,6.79223245]
[1763584543302,10.0742,133.01,132.94,9.73223245]
[1763584543802,0.05414327,132.99,132.96,0.049117]
[1763584544301,3.3,132.98,132.96,0.049117]
[1763584544799,3.35414327,132.99,132.96,0.049117]
[1763584545794,0.05414327,132.99,132.96,2.989117]
[1763584546505,0.05414327,132.99,132.98,2.94]
[1763584546691,3.3,133.06,132.98,2.94]
[1763584546894,3.3,133.05,132.98,2.94]
[1763584547302,10.0721,133.05,132.99,6.7749]
[1763584547700,3.3,133.04,133.01,0.05738841]
[1763584549011,3.3,133.05,133.01,2.99738841]
[1763584549499,3.3,133.05,133.01,0.05738841]
[1763584552304,10.072,133.05,133.01,0.05738841]
[1763584552507,3.3,133.04,133.01,0.05738841]
[1763584552698,1.30841824,133.09,133.03,2.94]
[1763584552902,4.60841824,133.09,133.05,2.99739387]
[1763584554108,4.60841824,133.09,133.05,0.05739387]
[1763584554305,3.3,133.08,133.05,0.05739387]
[1763584554910,10.0705,133.08,133.05,0.05739387]
[1763584555206,3.3,133.07,133.05,0.05739387]
[1763584555807,10.0711,133.07,133.05,0.05739387]
[1763584556106,3.3,133.06,133.05,0.05739387]
[1763584556900,19.28,133.08,133.05,0.05739387]
[1763584557114,3.3,133.07,133.05,0.05739387]
[1763584558816,10.0717,133.06,132.99,9.7149]
[1763584559204,10.0717,133.06,133.0,2.94]
[1763584559407,3.3,133.06,133.0,9.7145]
[1763584559919,0.05215758,133.04,133.02,0.05166027]
[1763584560614,0.05215758,133.04,133.02,2.99166027]
[1763584561315,0.05215758,133.04,133.02,9.76506027]
[1763584561516,0.05215758,133.04,133.03,2.94]
[1763584562319,0.05215758,133.04,133.02,6.82506027]
[1763584562512,0.05215758,133.04,133.02,9.76506027]
[1763584562711,0.05215758,133.04,133.03,2.94]
[1763584563407,0.05215758,133.04,133.02,0.05166027]
[1763584563821,3.35215758,133.04,133.02,0.05166027]
[1763584564114,0.05215758,133.04,133.02,0.05166027]
[1763584564706,3.35215758,133.04,133.02,0.05166027]
[1763584566218,0.05215758,133.04,133.02,2.99166027]
[1763584566411,6.79223245,133.11,133.03,2.89]
[1763584566412,19.24,133.11,133.03,2.89]
[1763584566613,20.54834446,133.11,133.05,9.662]
[1763584567625,3.3,133.1,133.07,0.04775427]
[1763584569827,1.30834446,133.11,133.07,2.93775427]
[1763584570320,4.62834446,133.11,133.07,2.93775427]
[1763584571016,1.30834446,133.11,133.07,0.04775427]
[1763584571218,3.32,133.09,133.07,0.04775427]
[1763584571419,3.32,133.09,133.03,9.6629]
[1763584571625,3.32,133.07,133.03,9.6629]
[1763584572324,3.32,133.1,133.04,2.94363377]
[1763584572721,0.05136263,133.08,133.05,2.89]
[1763584572923,0.05136263,133.08,133.05,2.94249146]
[1763584573631,0.05136263,133.08,133.07,2.89]
[1763584576330,0.05136263,133.08,133.05,2.94249146]
[1763584577429,3.37136263,133.08,133.05,0.05249146]
[1763584578134,0.05136263,133.08,133.05,2.94249146]
[1763584578340,3.37136263,133.08,133.05,2.94249146]
[1763584578638,0.05136263,133.08,133.05,9.71429146]
[1763584578825,0.05136263,133.08,133.05,2.94249146]
[1763584579332,0.05136263,133.08,133.06,9.6614]
[1763584580226,0.05136263,133.08,133.06,2.89]
[1763584580533,0.05136263,133.08,133.05,2.94249146]
[1763584581934,0.05136263,133.08,133.06,9.6614]
[1763584583235,0.05136263,133.08,133.07,2.89]
[1763584585134,0.05136263,133.08,133.07,9.661]
[1763584586632,107.29023734,133.16,133.11,2.89]
[1763584586633,2.03003734,133.16,133.11,2.89]
[1763584586834,3.1,133.21,133.14,0.98]
[1763584587132,9.8655,133.18,133.12,0.98]
[1763584587335,3.1,133.23,133.13,106.2553]
[1763584587532,6.7639,133.21,133.14,0.98]
[1763584587734,3.1,133.2,133.16,0.04836005]
[1763584588133,3.1,133.2,133.06,138.6194707]
[1763584588134,3.1,133.17,133.11,0.98]
[1763584589040,3.1,133.15,133.11,0.98]
[1763584589229,0.05600991,133.14,133.12,0.05259032]
[1763584589627,0.05600991,133.14,133.12,1.03259032]
[1763584589826,3.15600991,133.14,133.12,0.05259032]
[1763584590026,0.05600991,133.14,133.12,1.03259032]
[1763584590439,0.05600991,133.14,133.12,0.05259032]
[1763584592241,3.15600991,133.14,133.12,0.05259032]
[1763584592737,19.04,133.13,133.06,7.7511]
[1763584593039,19.04,133.13,133.06,0.98]
[1763584593237,15.94,133.13,133.06,0.98]
[1763584593937,0.05231396,133.11,133.08,0.05462257]
[1763584594539,0.05231396,133.11,133.03,3.33]
[1763584594742,105.2901,133.12,133.03,3.33]
[1763584594926,6.7701,133.09,133.03,3.33]
[1763584595134,105.297,133.11,133.03,3.33]
[1763584595440,3.1,133.1,133.04,6.7723]
[1763584595640,0.05488555,133.08,133.06,3.38347696]
[1763584595836,0.05643438,133.08,133.06,3.38347696]
[1763584597841,0.05643438,133.08,133.06,0.05347696]
[1763584598442,0.05643438,133.08,133.06,3.09347696]
[1763584600246,0.05643438,133.08,133.07,3.04]
[1763584600440,0.05643438,133.08,133.06,3.09347696]
[1763584600646,0.05643438,133.08,133.06,9.86487696]
[1763584600944,0.05643438,133.08,133.06,0.05347696]
[1763584602443,0.05643438,133.08,133.06,3.09347696]
[1763584604744,0.05643438,133.08,133.06,9.86467696]
[1763584604950,0.05643438,133.08,133.06,3.09347696]
[1763584606149,0.05643438,133.08,133.06,9.86487696]
[1763584608152,0.05643438,133.08,133.06,3.09347696]
[1763584610253,3.06,133.07,133.06,0.05347696]
[1763584610549,15.97643438,133.08,133.06,0.05347696]
[1763584610754,0.05643438,133.08,133.06,3.09347696]
[1763584610956,0.05643438,133.08,133.06,9.86477696]
[1763584611249,0.05643438,133.08,133.07,3.04]
[1763584614152,0.05643438,133.08,133.06,0.05347696]
[1763584614548,3.11643438,133.08,133.06,0.05347696]
[1763584616762,0.05643438,133.08,133.06,0.05347696]
[1763584617658,3.11643438,133.08,133.06,0.05347696]
[1763584617860,0.05643438,133.08,133.06,0.05347696]
[1763584618168,3.11643438,133.08,133.06,0.05347696]
[1763584621066,7.51409708,133.07,132.99,3.04]
[1763584621263,3.06,133.04,132.99,3.04]
[1763584621461,3.06,133.03,132.99,3.04]
[1763584622263,0.05401892,133.02,133.0,0.04826375]
[1763584622669,3.11401892,133.02,133.0,0.04826375]
[1763584624673,0.05401892,133.02,133.0,3.08826375]
[1763584624871,3.06,133.08,133.01,3.04]
[1763584625173,105.2901,133.12,133.05,9.812]
[1763584625174,6.769,133.11,133.05,9.812]
[1763584625360,3.06,133.11,133.05,3.04]
[1763584625875,3.11037844,133.09,133.07,0.0557051]
[1763584626365,0.05037844,133.09,133.07,0.0557051]
[1763584626566,0.05037844,133.09,133.07,3.0957051]
[1763584627776,0.05037844,133.09,133.07,9.8666051]
[1763584627980,0.05037844,133.09,133.08,3.21]
[1763584628775,10.64201225,133.16,133.09,3.21]
[1763584628776,3.26,133.15,133.09,3.21]
[1763584629167,10.027,133.15,133.09,3.21]
[1763584629684,0.05401024,133.13,133.11,0.051402]
[1763584629867,3.31401024,133.13,133.11,0.051402]
[1763584630377,0.05401024,133.13,133.11,0.051402]
[1763584630577,3.31401024,133.13,133.11,0.051402]
[1763584632180,3.26,133.09,133.02,3.21]
[1763584632868,3.26,133.09,133.05,3.21]
[1763584633274,0.0537936,133.08,133.06,0.05174308]
[1763584633879,3.26,133.06,133.01,3.21]
[1763584634182,3.26,133.03,132.94,3.21]
[1763584634478,19.16,133.02,132.95,9.9867]
[1763584634674,19.16,133.02,132.96,3.21]
[1763584635176,0.05336984,133.0,132.98,3.26007734]
[1763584636878,0.05336984,133.0,132.98,10.03547734]
[1763584637985,15.9,133.04,132.98,10.03547734]
[1763584637986,3.26,133.05,132.99,9.9848]
[1763584638381,3.26,133.03,132.95,3.21]
[1763584638583,10.05391261,133.01,132.95,9.9869]
[1763584638888,0.05757075,132.99,132.97,0.05514164]
[1763584639382,3.31757075,132.99,132.97,0.05514164]
[1763584639888,3.26,132.98,132.91,3.21]
[1763584640287,10.0367,132.96,132.89,9.9899]
[1763584640588,3.26,132.96,132.89,3.21]
[1763584640889,0.05434158,132.94,132.91,3.25977275]
[1763584643482,0.05434158,132.94,132.93,3.21]
[1763584643683,15.92,133.01,132.93,3.21]
[1763584643990,19.18,133.01,132.93,3.21]
[1763584644490,3.26,133.0,132.94,6.7772]
[1763584644792,0.05301116,132.98,132.96,0.05020757]
[1763584646083,0.05301116,132.98,132.96,10.11660757]
[1763584646588,0.05301116,132.98,132.97,3.29]
[1763584646783,3.28,133.03,132.98,3.29]
[1763584647187,10.0521,133.05,132.99,6.7748]
[1763584647390,10.0521,133.05,132.94,105.4268]
[1763584647391,3.28,133.05,132.94,3.29]
[1763584647582,3.28,133.02,132.94,3.29]
[1763584647885,0.05591933,132.99,132.97,3.33929365]
[1763584648287,0.05591933,132.99,132.97,10.11519365]
[1763584648492,0.05591933,132.99,132.97,3.33929365]
[1763584648794,3.33591933,132.99,132.97,0.04929365]
[1763584650289,3.28,132.98,132.97,0.04929365]
[1763584651485,3.28,132.98,132.91,3.29]
[1763584651683,3.28,132.97,132.91,3.29]
[1763584652492,0.04812545,132.95,132.93,0.05521307]
[1763584653489,0.04812545,132.95,132.93,3.34521307]
[1763584654595,0.04812545,132.95,132.93,0.05521307]
[1763584655601,0.04812545,132.95,132.93,3.34521307]
[1763584656096,0.04812545,132.95,132.93,10.12321307]
[1763584656294,3.28,133.0,132.94,3.29]
[1763584656700,3.28,133.02,132.97,3.29]
[1763584657103,3.28,133.02,132.94,108.7159]
[1763584657299,0.04809033,132.99,132.97,0.05371977]
[1763584657896,0.04809033,132.99,132.97,3.17371977]
[1763584659002,0.04809033,132.99,132.97,9.94961977]
[1763584661398,0.04809033,132.99,132.98,3.12]
[1763584661600,0.04809033,132.99,132.97,9.94961977]
[1763584662000,0.04809033,132.99,132.98,3.12]
[1763584662301,3.17,133.05,133.01,3.12]
[1763584663497,0.05380096,133.04,133.02,0.04940301]
[1763584664001,3.22380096,133.04,133.02,0.04940301]
[1763584664601,0.05380096,133.04,133.03,3.12]
[1763584665100,0.05380096,133.04,133.02,3.16940301]
[1763584666005,0.05380096,133.04,133.02,9.94260301]
[1763584666191,0.05380096,133.04,133.03,3.12]
[1763584666900,0.05380096,133.04,133.02,0.04940301]
[1763584667312,0.05380096,133.04,133.02,3.16940301]
[1763584667798,0.05380096,133.04,133.03,3.12]
[1763584669303,0.05380096,133.04,133.02,3.16940301]
[1763584669603,3.22380096,133.04,133.02,0.04940301]
[1763584676609,0.05380096,133.04,133.02,3.16940301]
[1763584676804,0.05380096,133.04,133.02,9.94280301]
[1763584679116,0.05380096,133.04,133.03,3.12]
[1763584681509,3.17,133.11,133.05,3.12]
[1763584681711,6.97235022,133.14,133.08,3.12]
[1763584681712,3.17,133.14,133.08,3.12]
[1763584681914,3.17,133.14,133.08,9.89]
[1763584682211,3.17,133.14,133.08,3.12]
[1763584682409,3.17,133.14,133.1,0.05025275]
[1763584682610,3.17,133.12,133.05,3.12]
[1763584682811,6.01965605,133.11,133.07,6.7708]
[1763584683013,6.01965605,133.11,133.07,9.9417785]
[1763584683513,3.17,133.14,133.08,3.12]
[1763584683716,6.01965605,133.14,133.1,3.169099]
[1763584684010,3.17,133.11,133.1,0.049099]
[1763584684213,3.17,133.11,133.09,0.05557698]
[1763584684409,3.17,133.11,133.09,0.04811027]
[1763584685406,6.01965605,133.1,133.09,0.04811027]
[1763584686114,2.84965605,133.1,133.09,0.04811027]
[1763584686510,19.05,133.13,133.09,3.16811027]
[1763584686710,3.17,133.13,133.09,3.16811027]
[1763584686913,3.17,133.16,133.09,3.16811027]
[1763584687209,3.17,133.14,133.11,0.0551666]
[1763584687415,3.17,133.14,133.11,0.05663111]
[1763584687808,5.92965605,133.13,133.11,0.05663111]
[1763584688007,3.08,133.12,133.11,0.05663111]
[1763584688417,5.92965605,133.14,133.11,0.05663111]
[1763584688717,3.08,133.13,133.11,0.05663111]
[1763584695621,3.12863911,133.13,133.04,3.15]
[1763584695815,3.08,133.11,133.05,6.7719]
[1763584696021,3.08,133.1,133.04,3.15]
[1763584696415,3.08,133.1,133.06,9.9214]
[1763584696616,0.05410961,133.09,133.07,0.05313853]
[1763584696816,3.13410961,133.09,133.07,0.05313853]
[1763584698135,3.13410961,133.09,133.07,6.82393853]
[1763584698340,0.05410961,133.09,133.08,3.15]
[1763584701933,0.05410961,133.09,133.07,0.05313853]
[1763584702138,0.05410961,133.09,133.07,3.20313853]
[1763584702846,3.13410961,133.09,133.07,0.05313853]
[1763584703248,3.13410961,133.09,133.07,3.20313853]
[1763584703249,0.05410961,133.09,133.07,3.20313853]
[1763584703446,0.05410961,133.09,133.07,0.05313853]
[1763584703749,0.05410961,133.09,133.07,3.20313853]
[1763584704456,3.13410961,133.09,133.07,0.05313853]
[1763584705746,6.82420961,133.09,133.07,0.05313853]
[1763584705951,6.82420961,133.09,132.98,128.0551]
[1763584705952,3.15,133.08,133.01,3.04]